Cogmind - Beta 15 @@@ ROGUE MODE // 2025.09.05 @ 05:25:32 Player: shapeshifter Result: Destroyed by Soldier 4a with Heavy Laser Performance ------------- Evolutions (3) 1500 Regions Visited (8) 1600 Robots Destroyed (181) 905 Value Destroyed (8320) 8320 Prototype IDs (3) 60 Alien Tech Used (0) 0 Bonus (3735) 3735 TOTAL SCORE: 16120 Bonus ------- High Alert Combat Kills 2115 Follower Combat Kills 20 Entered Garrisons 600 Used RIF Installer 1000 Cogmind --------- Core Integrity 0/700 Matter 29/300 Energy 99/160 System Corruption 5% Temperature Cool (17) Movement Core (1500) Ox29 Location -7/Garrison Parts ------- > --- POWER (1) -------- Light Nuclear Core > --- PROPULSION (3) --- (None) > --- UTILITY (5) ------ Huge Storage Unit Weapon Cycler Relay Coupler [Grunt] (29) > --- WEAPON (4) ------- Katana > --- INVENTORY (25) --- Large Storage Unit High-capacity Storage Unit High-capacity Matter Pod (200) Core Analyzer ECM Suite Advanced Phase Shifter Improved Light Armor Plating Improved Light Armor Plating Improved Light Armor Plating Relay Coupler [NC] (39) Relay Coupler [NC] (33) Relay Coupler [Swarmer] (33) Relay Coupler [Brawler] (40) Relay Coupler [Duelist] (34) Relay Coupler [Sentry] (25) Relay Coupler [Demolisher] (20) Relay Coupler [Demolisher] (21) Relay Coupler [Specialist] (31) Relay Coupler [Hunter] (17) Relay Coupler [Behemoth] (12) Peak State ------------ > --- POWER ------------ Light Angular Momentum Engine > --- PROPULSION ------- Carbon-fiber Leg Carbon-fiber Leg Carbon-fiber Leg > --- UTILITY ---------- Improved Heat Sink Huge Storage Unit Weapon Cycler Layered Medium Armor Plating Relay Coupler [Grunt] > --- WEAPON ----------- Coil Gun Heavy Machine Gun KE Penetrator Katana > --- INVENTORY -------- Light Nuclear Core Light Nuclear Core Carbon-fiber Leg Large Storage Unit High-capacity Storage Unit High-capacity Matter Pod Core Analyzer ECM Suite Advanced Phase Shifter Improved Light Armor Plating Improved Light Armor Plating Improved Light Armor Plating Relay Coupler [NC] Relay Coupler [NC] Relay Coupler [Swarmer] Relay Coupler [Grunt] Relay Coupler [Brawler] Relay Coupler [Duelist] Relay Coupler [Sentry] Relay Coupler [Demolisher] Relay Coupler [Demolisher] Relay Coupler [Specialist] Relay Coupler [Hunter] Relay Coupler [Behemoth] Remote Datajack [Rating: 57] Favorites ----------- Power Light Nuclear Core Engine Deuterium Engine Power Core Light Nuclear Core Propulsion Light Treads Treads Light Treads Leg Carbon-fiber Leg Wheel Armored Wheel Utility Huge Storage Unit Device Weapon Cycler Storage Huge Storage Unit Hackware Relay Coupler [Grunt] Protection Layered Medium Armor Plating Weapon Enhanced Autogun Energy Gun EM Pulse Gun Energy Cannon Advanced Beam Cannon Ballistic Gun Enhanced Autogun Launcher Missile Launcher Special Weapon Remote Datajack Slashing Weapon Katana Build | -11 -10 -9 -8 -8 -7 -7 -7 -7 ------- Run | Yrd Mat Mat Mat Gar Fac Gar Fac Gar Slots Evolved 6 | . . 2 2 . 2 . . . Power . | . . . . . . . . . Propulsion 1 | . . 1 . . . . . . Utility 3 | . . . 1 . 2 . . . Weapon 2 | . . 1 1 . . . . . Parts Attached 105 | 6 11 8 30 19 4 18 3 6 Power 12 | 1 2 . 2 1 . 2 2 2 Engine 5 | 1 1 . 2 . . . . 1 Core 7 | . 1 . . 1 . 2 2 1 Reactor . | . . . . . . . . . Propulsion 29 | 2 2 4 9 4 . 6 . 2 Treads 20 | 2 2 4 9 1 . 2 . . Leg 6 | . . . . . . 4 . 2 Wheel 3 | . . . . 3 . . . . Hover . | . . . . . . . . . Flight . | . . . . . . . . . Utility 32 | 1 3 2 9 6 3 6 1 1 Device 12 | . 1 . 4 4 2 1 . . Storage 3 | 1 1 1 . . . . . . Processor . | . . . . . . . . . Hackware 4 | . . . . . 1 1 1 1 Protection 13 | . 1 1 5 2 . 4 . . Artifact . | . . . . . . . . . Weapon 32 | 2 4 2 10 8 1 4 . 1 Energy Gun 2 | 2 . . . . . . . . Energy Cannon 1 | . 1 . . . . . . . Ballistic Gun 25 | . 3 2 8 7 . 4 . 1 Ballistic Cannon . | . . . . . . . . . Launcher 2 | . . . 2 . . . . . Special Weapon 1 | . . . . . 1 . . . Impact Weapon . | . . . . . . . . . Slashing Weapon 1 | . . . . 1 . . . . Piercing Weapon . | . . . . . . . . . Special Melee Weapon . | . . . . . . . . . Unidentified Prototypes 3 | . 1 . 2 . . . . . Parts Lost 44 | . 3 . 10 4 . 13 2 12 Power 10 | . 2 . 2 1 . 2 2 1 Propulsion 13 | . . . 2 1 . 6 . 4 Utility 9 | . . . 4 2 . 1 . 2 Weapon 12 | . 1 . 2 . . 4 . 5 Highest Loss Streak 12 | . 1 . 3 2 . 8 2 12 To Critical Strikes . | . . . . . . . . . Average Backups 22 | 3 9 20 24 23 23 23 23 24 Power . | 1 . 1 . . . . . . Propulsion 4 | 1 4 5 5 4 4 3 1 . Utility 10 | . 1 4 7 14 16 17 20 20 Weapon 5 | . 2 8 8 3 2 1 1 . Tool/Special . | . . . . . . . . . Unused Backups 60 | . 8 4 17 12 . 3 . 16 Power 1 | . . . 1 . . . . . Propulsion 5 | . 4 1 . . . . . . Utility 40 | . 2 1 8 11 . 2 . 16 Weapon 13 | . 2 2 8 . . 1 . . Tool/Special 1 | . . . . 1 . . . . Average Slot Usage (%) 97 | . 95 99 97 98 99 94 93 95 Engine 3 | . 11 . 4 5 . . . 3 Core 5 | . 1 11 4 3 7 6 6 2 Treads 18 | . 28 33 25 8 7 8 . . Leg 3 | . . . . . . 7 23 21 Wheel 4 | . . . . 18 15 4 . . Device 8 | . 3 2 6 8 18 14 15 13 Storage 9 | . 14 11 9 9 7 7 7 7 Protection 9 | . 7 8 10 9 7 12 8 6 Ballistic Gun 29 | . 20 32 33 32 29 22 23 22 Slashing Weapon 1 | . . . . 3 . 3 . 6 Peak Build Rating 57 | 6 12 17 35 45 51 54 55 57 Average Rating 32 | 3 7 15 26 38 48 49 52 54 On Entrance 29 | . 6 12 17 35 42 51 52 51 Naked Turns . | . . . . . . . . . Heaviest Build 117 | 14 30 95 106 108 111 117 113 116 Greatest Support 60 | 40 40 60 60 60 24 45 45 45 Greatest Overweight (x) 9 | . . 1 2 4 4 9 2 2 Average Overweight (x) 2 | . . . 1 3 4 3 2 2 Largest Inventory Capacity 25 | 8 15 25 25 25 25 25 25 25 Average Capacity 23 | 7 11 21 25 25 25 25 25 25 Most Carried 25 | 6 15 25 25 25 25 25 24 25 Average Carried 22 | 3 9 20 24 23 23 23 23 24 Final Capacity 25 | 8 15 25 25 25 25 25 25 25 Final Carried 25 | 4 15 25 24 25 24 24 23 23 Class Distribution -------------------- 42% | Tank 25% | Bothacker-Tank 10% | Gunner 8% | Scavenger-Gunner 8% | Mutant Dominant Class ---------------- Mutant | -10/Materials Tank | -9/Materials Tank | -8/Materials Tank | -8/Garrison Bothacker-Tank | -7/Factory Bothacker-Tank | -7/Garrison Bothacker-Tank | -7/Factory Bothacker-Tank | -7/Garrison Resources | -11 -10 -9 -8 -8 -7 -7 -7 -7 ----------- Run | Yrd Mat Mat Mat Gar Fac Gar Fac Gar Matter Collected 6622 | 247 225 425 1718 1419 238 1653 318 379 Remotely . | . . . . . . . . . Salvage Created 7527 | 26 418 566 2513 1391 225 1516 477 395 Parts 400 | 2 25 26 124 99 13 67 22 22 Haulers Intercepted 5 | . 1 . 4 . . . . . Recyclers Shooed 4 | 1 . 1 2 . . . . . Parts Field Recycled . | . . . . . . . . . Retrieved Matter . | . . . . . . . . . Parts Self-Destructed . | . . . . . . . . . Prevented . | . . . . . . . . . Kills | -11 -10 -9 -8 -8 -7 -7 -7 -7 ------- Run | Yrd Mat Mat Mat Gar Fac Gar Fac Gar Combat Hostiles Destroyed 162 | . 10 12 43 39 3 35 9 11 Guns 157 | . 9 12 40 39 3 35 8 11 AOE 5 | . 1 . 3 . . . 1 . Classes Destroyed 19 | 1 3 2 8 5 . . . . Worker 3 | . . . 3 . . . . . Builder 1 | . . . 1 . . . . . Tunneler 1 | 1 . . . . . . . . Hauler 5 | . 1 . 4 . . . . . Recycler 3 | . . . 3 . . . . . Operator 1 | . . . 1 . . . . . Watcher 5 | . . . 4 . 1 . . . Swarmer 44 | . 3 . 7 14 . 15 . 5 Cutter 2 | . . . . 2 . . . . Saboteur 1 | . . . . 1 . . . . Grunt 68 | . 7 7 24 10 . 11 7 2 Brawler 8 | . . 2 . 2 . 4 . . Duelist 3 | . . . 2 1 . . . . Protector 1 | . . . . 1 . . . . Sentry 23 | . . 3 7 3 2 5 . 3 Specialist 3 | . . . 2 1 . . . . Hunter 3 | . . . . 1 . . 2 . Programmer 5 | . . . . 3 1 . . 1 Heavy 1 | . . . 1 . . . . . Best Kill Streak 9 | 1 3 3 6 9 3 8 4 4 Combat Bots Only 9 | . 3 3 5 9 3 8 4 4 Max Kills in Single Turn 3 | 1 1 1 3 2 1 2 1 2 Gunslinging 1 | . . . 1 1 . 1 . . Exploded 2 | . 1 . 2 . . . 1 . Melee . | . . . . . . . . . Uniques/NPCs Destroyed . | . . . . . . . . . Combat | -11 -10 -9 -8 -8 -7 -7 -7 -7 -------- Run | Yrd Mat Mat Mat Gar Fac Gar Fac Gar Hostile Shots Fired 999 | . 49 48 234 112 24 297 49 186 Missed 289 | . 13 20 65 29 9 87 16 50 Hits 710 | . 36 28 169 83 15 210 33 136 Melee 22 | . . 1 9 10 . 2 . . Projectile 688 | . 36 27 160 73 15 208 33 136 AOE 4 | . . . . 4 . . . . Critical Strikes 14 | . . 1 4 1 . 1 1 6 Damage Taken 9573 | . 531 362 2720 1013 143 2683 436 1685 Core 1223 | . 100 47 237 139 5 349 54 292 Absorbed by Shields 148 | . 22 37 78 11 . . . . Redirected to Shielding 154 | . 29 . 73 52 . . . . Core Remaining (%) 69 | 100 60 88 . 31 . . . . Volleys Fired 495 | 3 29 43 150 72 11 118 30 39 Largest 4 | 2 2 3 4 4 4 4 3 3 Hottest 100 | 90 60 60 93 100 100 100 93 93 Shots Fired 1572 | 6 56 129 536 280 38 343 77 107 Gun 1546 | 6 56 129 531 280 36 332 72 104 Cannon . | . . . . . . . . . Launcher 5 | . . . 5 . . . . . Special 21 | . . . . . 2 11 5 3 Kinetic 1528 | . 44 129 531 280 36 332 72 104 Thermal 3 | 3 . . . . . . . . Explosive 5 | . . . 5 . . . . . Electromagnetic 15 | 3 12 . . . . . . . Robot Hit Streak 20 | 3 18 20 15 9 9 11 6 8 Robot Miss Streak 13 | 1 2 2 5 11 4 13 4 7 Penetration Max 1 | . . . . . . 1 1 1 Secondary Targets 39 | . 1 . 8 15 . 12 . 3 Max Gunslinging Chain 2 | . 1 . 1 2 . 1 . 1 Shots Hit Robots 882 | 4 41 89 312 130 24 181 38 63 Core Hits 384 | 1 18 30 134 65 10 75 20 31 Critical Kills 5 | . . 1 1 2 . . . 1 Critical Parts Destroyed 13 | . . . 5 1 . 5 . 2 Critical Strikes 20 | . . 1 7 3 . 6 . 3 Destroy 20 | . . 1 7 3 . 6 . 3 Melee Attacks 49 | . . . . 34 . 9 . 6 Impact . | . . . . . . . . . Slashing 49 | . . . . 34 . 9 . 6 Piercing . | . . . . . . . . . Sneak Attacks . | . . . . . . . . . Combat Hostiles . | . . . . . . . . . Follow-up Attacks . | . . . . . . . . . Damage Inflicted 15035 | 85 560 814 4861 2461 371 3317 883 1683 Guns 14333 | 50 500 814 4437 2413 371 3307 758 1683 Cannons . | . . . . . . . . . Explosions 637 | 35 53 . 424 . . . 125 . Melee 48 | . . . . 48 . . . . Ramming 17 | . 7 . . . . 10 . . Kinetic 14169 | . 386 814 4437 2413 371 3307 758 1683 Thermal 125 | 72 53 . . . . . . . Explosive 424 | . . . 424 . . . . . Electromagnetic 252 | 13 114 . . . . . 125 . Impact . | . . . . . . . . . Slashing 48 | . . . . 48 . . . . Piercing . | . . . . . . . . . Highest Corruption 5 | . 2 . 2 4 . 3 3 5 Average Corruption 2 | . 1 . 2 2 . 2 3 3 Corruption Purged . | . . . . . . . . . Corruption Blocked . | . . . . . . . . . Effects 77 | . 3 . 1 34 . 15 16 8 Message Errors 20 | . 1 . 1 9 . 1 5 3 Matter Fused 16 | . . . . 6 . 6 2 2 Heat Flow Errors 10 | . . . . 4 . 4 2 . Energy Discharges 8 | . . . . 4 . 1 3 . Parts Rejected 1 | . . . . . . . 1 . Parts Fused 1 | . . . . . . 1 . . Data Loss (minor) 6 | . 1 . . 3 . 1 . 1 Data Loss (major) 4 | . 1 . . 2 . . . 1 Misfires 4 | . . . . 3 . 1 . . Alerts 3 | . . . . 2 . . . 1 Weapon Failures 4 | . . . . 1 . . 3 . Overload Shots . | . . . . . . . . . Overflow Damage 5 | 5 . . . . . . . . Projectiles . | . . . . . . . . . Explosions 5 | 5 . . . . . . . . Melee . | . . . . . . . . . Knockbacks . | . . . . . . . . . Impact . | . . . . . . . . . Kinetic . | . . . . . . . . . Secondary . | . . . . . . . . . Self-Inflicted Damage 40 | . 40 . . . . . . . Shots 1 | . 1 . . . . . . . Rammed 5 | . 1 . . . . 4 . . Targets Rammed 5 | . 1 . . . . 4 . . Kicked . | . . . . . . . . . Crushed . | . . . . . . . . . Highest Temperature 469 | 90 42 123 356 469 122 321 325 275 Average Temperature 83 | 52 13 39 76 148 51 86 61 93 Received Heat Transfer 2457 | . 168 132 933 168 12 450 207 387 Effects 6 | . . . . 5 . . . 1 Shutdowns 1 | . . . . 1 . . . . Energy Bleed 2 | . . . . 1 . . . 1 Interference 2 | . . . . 2 . . . . Short Circuit 1 | . . . . 1 . . . . Siege Activations . | . . . . . . . . . Martial Activations . | . . . . . . . . . Shielding Activations . | . . . . . . . . . Robots Disrupted 1 | . . . . . . . 1 . Combat Hostiles 1 | . . . . . . . 1 . Robots Corrupted . | . . . . . . . . . Combat Hostiles . | . . . . . . . . . Parts Fried . | . . . . . . . . . Impact Corruptions . | . . . . . . . . . Robots Melted . | . . . . . . . . . Combat Hostiles . | . . . . . . . . . Parts Melted 1 | 1 . . . . . . . . Heat Transferred 261 | 161 100 . . . . . . . Parts Sabotaged 11 | . . . . 11 . . . . Parts Stolen . | . . . . . . . . . Parts Stripped . | . . . . . . . . . Power Chain Reactions 2 | 1 1 . . . . . . . Alert | -11 -10 -9 -8 -8 -7 -7 -7 -7 ------- Run | Yrd Mat Mat Mat Gar Fac Gar Fac Gar Maximum Alert Level 5 | . . . 2 5 3 5 3 3 Low Security (%) 38 | 100 100 100 51 . . . . . Level 1 6 | . . . 17 2 . . . . Level 2 14 | . . . 30 16 . 10 . . Level 3 18 | . . . . 11 100 28 100 100 Level 4 17 | . . . . 53 . 45 . . Level 5 5 | . . . . 15 . 15 . . High Security . | . . . . . . . . . Max Security . | . . . . . . . . . Peak Influence 1918 | 5 100 88 608 1726 912 1918 1054 933 Initial 1006 | . 3 . 1 391 905 550 1006 726 Average 593 | . 30 26 261 1174 809 1189 998 841 Influence Increases 5566 | 5 286 362 1301 1395 102 1498 282 335 Destroy 0b10 Robot/C 3240 | . 200 240 860 760 60 700 180 240 Destroy 0b10 Robot/NC 100 | 5 5 . 80 5 5 . . . Destroy Leader 510 | . 52 80 206 40 22 40 40 30 Allied During Kill 5 | . . . . . . . . 5 Successful Hack 92 | . 25 42 11 . . 14 . . Disable Machine 165 | . . . 75 . 15 . 60 15 Anti-Garrison Action 950 | . . . . 550 . 400 . . Destroy Structure 189 | . 4 . 39 40 . 74 2 30 Lose Combat Pursuer 315 | . . . 30 . . 270 . 15 Influence Decreases 4685 | . 291 358 703 271 1041 367 1162 492 Entered New Map 2498 | . 2 . 3 211 821 237 912 312 Time Decay 1633 | . 265 358 600 . 180 . 230 . Lost Part 434 | . 24 . 100 40 . 130 20 120 Lost Ally 120 | . . . . 20 40 . . 60 Squads Dispatched 13 | . 2 2 4 . 2 . 3 . Investigation 1 | . 1 . . . . . . . Extermination 1 | . . . . . 1 . . . Reinforcement 10 | . 1 2 4 . . . 3 . Assault . | . . . . . . . . . Garrison 1 | . . . . . 1 . . . Intercept . | . . . . . . . . . Searches Triggered . | . . . . . . . . . Construction Impeded 1 | . . . 1 . . . . . Haulers Reinforced 1 | . . . . . . . 1 . Active Scanning Responses . | . . . . . . . . . Cargo Convoy Interrupts . | . . . . . . . . . Stealth | -11 -10 -9 -8 -8 -7 -7 -7 -7 --------- Run | Yrd Mat Mat Mat Gar Fac Gar Fac Gar Distress Signals 5 | . . 1 3 . . . 1 . Communications Jammed . | . . . . . . . . . Distress Signals . | . . . . . . . . . Times Spotted 231 | . 14 16 72 42 6 48 13 20 Peak Tracking Total 8 | . 3 3 5 6 3 7 4 8 Tactical Retreats 18 | . . . 2 . . 15 . 1 Traps | -11 -10 -9 -8 -8 -7 -7 -7 -7 ------- Run | Yrd Mat Mat Mat Gar Fac Gar Fac Gar Traps Triggered 23 | . 4 . 2 11 . 6 . . Indirectly . | . . . . . . . . . Trap Hack Attempts . | . . . . . . . . . Triggered . | . . . . . . . . . Disarmed . | . . . . . . . . . Reprogrammed . | . . . . . . . . . Reused . | . . . . . . . . . Traps Extracted . | . . . . . . . . . Installed . | . . . . . . . . . Triggered . | . . . . . . . . . Machines | -11 -10 -9 -8 -8 -7 -7 -7 -7 ---------- Run | Yrd Mat Mat Mat Gar Fac Gar Fac Gar Machines Disabled 21 | . . . 5 5 1 5 4 1 Max in Single Turn 2 | . . . 1 1 1 1 2 1 Garrison Relay 8 | . . . . 5 . 3 . . Phase Generator 1 | . . . . . . 1 . . Machines Repaired . | . . . . . . . . . Machines Dismantled . | . . . . . . . . . Machines Sabotaged . | . . . . . . . . . Overloaded Fab Kills . | . . . . . . . . . Hacking | -11 -10 -9 -8 -8 -7 -7 -7 -7 --------- Run | Yrd Mat Mat Mat Gar Fac Gar Fac Gar Machines Accessed 29 | . 3 7 9 3 2 3 1 1 Terminals 25 | . 3 7 7 3 1 3 . 1 Fabricators . | . . . . . . . . . Repair Stations . | . . . . . . . . . Recycling Units 1 | . . . 1 . . . . . Scanalyzers . | . . . . . . . . . Garrison Access 3 | . . . 1 . 1 . 1 . Total Hacks 70 | . 10 19 26 3 3 7 1 1 Successful 36 | . 6 11 13 1 2 1 1 1 Failed 34 | . 4 8 13 2 1 6 . . Catastrophic 6 | . . 1 2 1 . 2 . . Database Lockouts . | . . . . . . . . . Manual 46 | . 10 16 18 . 2 . . . Terminals 64 | . 10 19 22 3 2 7 . 1 Fabricators . | . . . . . . . . . Repair Stations . | . . . . . . . . . Recycling Units 3 | . . . 3 . . . . . Scanalyzers . | . . . . . . . . . Garrison Access 3 | . . . 1 . 1 . 1 . Terminal Hacks 9 | . 2 2 2 1 . 1 . 1 Open Door 1 | . . . . 1 . . . . Emergency Access Points 2 | . . . . . . 1 . 1 Alert Level 1 | . . 1 . . . . . . Registered Components 3 | . 1 1 1 . . . . . Zone Layout 2 | . 1 . 1 . . . . . Fabricator Hacks . | . . . . . . . . . Repair Station Hacks . | . . . . . . . . . Recycling Unit Hacks . | . . . . . . . . . Scanalyzer . | . . . . . . . . . Garrison Access Hacks 3 | . . . 1 . 1 . 1 . Unlock Access 3 | . . . 1 . 1 . 1 . Unauthorized Hacks 24 | . 4 9 10 . 1 . . . Terminals 24 | . 4 9 10 . 1 . . . Botnet 14 | . 3 4 6 . 1 . . . Skim 10 | . 1 5 4 . . . . . Fabricators . | . . . . . . . . . Repair Stations . | . . . . . . . . . Recycling Units . | . . . . . . . . . Scanalyzers . | . . . . . . . . . Garrison Access . | . . . . . . . . . Data Cores Recovered . | . . . . . . . . . Used . | . . . . . . . . . Hacking Detections 28 | . 3 7 9 2 2 3 1 1 Full Trace Events 2 | . . . . . . 2 . . Feedback Events 1 | . . . . . . 1 . . Corruption 1 | . . . . . . 1 . . Feedback Blocked . | . . . . . . . . . Robot Schematics Acquired . | . . . . . . . . . Robots Built . | . . . . . . . . . Authchips . | . . . . . . . . . Time . | . . . . . . . . . Total Robot Build Rating . | . . . . . . . . . Part Schematics Acquired . | . . . . . . . . . Parts Built . | . . . . . . . . . Authchips . | . . . . . . . . . Time . | . . . . . . . . . Total Part Build Rating . | . . . . . . . . . Parts Repaired . | . . . . . . . . . Time . | . . . . . . . . . Parts Recycled . | . . . . . . . . . Recycled Matter . | . . . . . . . . . Retrieved Matter . | . . . . . . . . . Retrieved Components . | . . . . . . . . . Parts Scanalyzed . | . . . . . . . . . Part Schematics Acquired . | . . . . . . . . . Parts Damaged . | . . . . . . . . . Bothacking | -11 -10 -9 -8 -8 -7 -7 -7 -7 ------------ Run | Yrd Mat Mat Mat Gar Fac Gar Fac Gar Used RIF Installer 2 | . . . . 1 . 1 . . Patrol Navigation 1 | . . . . . . 1 . . Robots Hacked 6 | . . . . . 1 1 2 2 Non-combat . | . . . . . . . . . Combat 6 | . . . . . 1 1 2 2 Robot Hacks Applied 8 | . . . . . 2 1 3 2 find_garrison 2 | . . . . . 1 . 1 . amplify_resonance 2 | . . . . . . 1 1 . reboot_system 1 | . . . . . . . 1 . formatsys_high 3 | . . . . . 1 . . 2 Relay Couplers Released 34 | . . . . 21 . 13 . . Machine Destruction 34 | . . . . 21 . 13 . . Attached 4 | . . . . . 1 1 1 1 Fabnet Peak Effective % . | . . . . . . . . . Robots Rewired 3 | . . . . 2 1 . . . Allies Hacked . | . . . . . . . . . Hacks Repelled . | . . . . . . . . . Allies | -11 -10 -9 -8 -8 -7 -7 -7 -7 -------- Run | Yrd Mat Mat Mat Gar Fac Gar Fac Gar Total Allies 8 | . . . . 2 2 . . 4 Largest Group 2 | . . . . 2 2 . . 2 Highest-Rated Group 56 | . . . . 56 37 . . 45 Highest-Rated Ally 31 | . . . . 31 25 . . 31 Total Orders . | . . . . . . . . . Ally Attacks 9 | . . . . 1 4 . . 4 Total Damage 111 | . . . . 21 30 . . 60 Kills 1 | . . . . . . . . 1 Allies Corrupted . | . . . . . . . . . Allies Melted . | . . . . . . . . . Intel | -11 -10 -9 -8 -8 -7 -7 -7 -7 ------- Run | Yrd Mat Mat Mat Gar Fac Gar Fac Gar Active Infowar (turns) 242 | . . . 2 45 195 . . . Jamming 47 | . . . 2 45 . . . . ECM 195 | . . . . . 195 . . . Robot Analysis Total . | . . . . . . . . . Derelict Logs Recovered . | . . . . . . . . . Drone Launches . | . . . . . . . . . Drone Recoveries . | . . . . . . . . . Exploration | -11 -10 -9 -8 -8 -7 -7 -7 -7 ------------- Run | Yrd Mat Mat Mat Gar Fac Gar Fac Gar Turns Passed 11449 | 88 927 1495 3741 2216 366 1642 483 491 Spaces Moved 4551 | 61 467 582 1232 1168 190 558 155 138 Core 30 | 30 . . . . . . . . Treads 2514 | 31 467 582 1232 39 . 163 . . Legs 399 | . . . . . . 106 155 138 Wheels 1608 | . . . . 1129 190 289 . . Hover . | . . . . . . . . . Flight . | . . . . . . . . . Fastest Speed 50 | 50 160 160 240 116 150 150 260 260 Average Speed 200 | 105 160 200 249 149 150 230 260 260 Slowest Speed 325 | 160 160 240 320 325 150 320 260 260 Overloaded Moves . | . . . . . . . . . Propulsion Burnouts . | . . . . . . . . . Robots Hopped . | . . . . . . . . . Potential Cave-ins . | . . . . . . . . . Cave-ins Triggered . | . . . . . . . . . Exploration Rate (%) 43 | 4 67 52 89 82 7 67 6 19 Regions Visited 8 Branch Regions . Pre-discovered Areas 2 | . . 2 . . . . . . Known Exits Taken 3 | . . . 1 . 1 . 1 . Unknown Exits Taken 3 | 1 1 1 . . . . . . Scrap Searched . | . . . . . . . . . Spaces Dug 11 | . . . . 10 . 1 . . Terrain Destroyed 124 | 3 3 . 31 10 . 75 1 1 Melee 11 | . . . . 10 . 1 . . Projectile 4 | . . . . . . 2 1 1 AOE 109 | 3 3 . 31 . . 72 . . Terrain Rammed . | . . . . . . . . . Walls Destroyed . | . . . . . . . . . Machines Disabled . | . . . . . . . . . Actions | -11 -10 -9 -8 -8 -7 -7 -7 -7 --------- Run | Yrd Mat Mat Mat Gar Fac Gar Fac Gar Total 6112 | 79 597 841 1620 1532 262 789 191 201 Wait 483 | . 46 178 120 67 52 18 . 2 Move 4546 | 60 466 581 1232 1167 190 557 155 138 Hop . | . . . . . . . . . Pick Up 160 | 10 28 19 40 33 1 22 2 5 Fast Attach 15 | . 1 2 5 6 . 1 . . Attach 72 | 6 4 2 15 18 2 16 3 6 Detach 3 | . . . 1 1 . 1 . . Swap 52 | . 7 5 19 8 4 5 1 3 Drop 99 | . 15 11 38 23 . 10 . 2 Fire 495 | 3 29 43 150 72 11 118 30 39 Melee 49 | . . . . 34 . 9 . 6 Ram . | . . . . . . . . . Kick . | . . . . . . . . . Crush 5 | . 1 . . . . 4 . . Escape Stasis 99 | . . . . 71 . 28 . . Rewire 34 | . . . . 32 2 . . . Trap . | . . . . . . . . . Miscellaneous . | . . . . . . . . . Route ------- -11/Scrapyard -10/Materials (discovered 2 exits: *Mat x2) -9/Materials (discovered 3 exits: *Mat x2 / Min) -8/Materials (discovered 4 exits: *Fac x3 / Gar) -8/Garrison (discovered 3 exits: *Fac x3) -7/Factory (discovered 2 exits: Sto / Gar) -7/Garrison (discovered 2 exits: *Fac x2) -7/Factory -7/Garrison History --------- Turn | Location | Event 15 | -11/Scrapyard | Discovered new exit (range 16) 89 | -11/Scrapyard | Entered Materials 313 | -10/Materials | Build established: Mutant 430 | -10/Materials | Discovered new exit (range 12) 510 | -10/Materials | Discovered new exit (range 14) 1016 | -10/Materials | Entered another Materials area 1016 | -9/Materials | Evolved 2 slots: Propulsion x1, Weapon x1 1285 | -9/Materials | Build established: Tank 1377 | -9/Materials | Discovered new exit (range 8) 2195 | -9/Materials | Discovered new exit (range 16) 2249 | -9/Materials | Learned location of Zion (-6) 2281 | -9/Materials | Learned Storage garrison access intel 2338 | -9/Materials | Identified exit to Mines 2511 | -9/Materials | Entered another Materials area 2511 | -8/Materials | Evolved 2 slots: Utility x1, Weapon x1 3994 | -8/Materials | Discovered new exit (range 3) 4408 | -8/Materials | Build established: Scavenger-Gunner 4812 | -8/Materials | Lost 3 parts (1p1n1u) 5393 | -8/Materials | Discovered new exit (range 9) 5702 | -8/Materials | Build established: Gunner 6201 | -8/Materials | Discovered new exit (range 13) 6252 | -8/Materials | Identified exit to Garrison 6252 | -8/Materials | Entered Garrison 6536 | -8/Garrison | Garrison Relay disabled 6560 | -8/Garrison | Garrison Relay disabled 6582 | -8/Garrison | Triggered checkpoint 6676 | -8/Garrison | Triggered checkpoint 6676 | -8/Garrison | Triggered checkpoint 6727 | -8/Garrison | Build established: Tank 6758 | -8/Garrison | Triggered checkpoint 6768 | -8/Garrison | Core integrity fell below 50% 6793 | -8/Garrison | Garrison Relay disabled 6821 | -8/Garrison | Discovered new exit (range 10) 6933 | -8/Garrison | Destroyed 9 combat bots 6985 | -8/Garrison | Discovered new exit (range 12) 7042 | -8/Garrison | Triggered checkpoint 7061 | -8/Garrison | Garrison Relay disabled 7142 | -8/Garrison | Triggered checkpoint 7203 | -8/Garrison | Discovered new exit (range 10) 8112 | -8/Garrison | Triggered checkpoint 8131 | -8/Garrison | Garrison Relay disabled 8388 | -8/Garrison | Installed Relay Interface Framework 8468 | -8/Garrison | Entered Factory 8468 | -7/Factory | Accompanied by 1 ally 8468 | -7/Factory | Evolved 2 slots: Utility x2 8469 | -7/Factory | Identified exit to Storage 8710 | -7/Factory | Build established: Bothacker-Tank 8816 | -7/Factory | Garrison activated, responded to threat 8834 | -7/Factory | Identified exit to Garrison 8834 | -7/Factory | Entered Garrison 8986 | -7/Garrison | Triggered checkpoint 9024 | -7/Garrison | Garrison Relay disabled 9118 | -7/Garrison | Triggered checkpoint 9166 | -7/Garrison | Destroyed 8 combat bots 9337 | -7/Garrison | Expanded RIF knowledge: Patrol Navigation 9376 | -7/Garrison | Discovered new exit (range 12) 9458 | -7/Garrison | Triggered checkpoint 9644 | -7/Garrison | Garrison Relay disabled 9974 | -7/Garrison | Phase Generator disabled 10006 | -7/Garrison | Discovered new exit (range 12) 10136 | -7/Garrison | Lost 8 parts (1p3n1u3w) 10217 | -7/Garrison | Garrison Relay disabled 10395 | -7/Garrison | Core integrity fell below 50% 10476 | -7/Garrison | Entered Factory 10959 | -7/Factory | Identified exit to Garrison 10959 | -7/Factory | Entered Garrison 11019 | -7/Garrison | Triggered checkpoint 11088 | -7/Garrison | Rescued a captive Derelict 11106 | -7/Garrison | Rescued a captive Derelict 11369 | -7/Garrison | Triggered checkpoint 11389 | -7/Garrison | Triggered checkpoint 11405 | -7/Garrison | Triggered checkpoint 11420 | -7/Garrison | Triggered checkpoint 11435 | -7/Garrison | P-60 Hacker assimilated allied Soldier 4a 11440 | -7/Garrison | Core integrity fell below 20% 11450 | -7/Garrison | Destroyed by Soldier 4a with Heavy Laser Last Messages --------------- 11435_ Switching to secondary target: P-60 Hacker. 11435_ P-60 Hacker hacks Soldier 4a, assimilated. 11436_ Trooper 4b destroyed. 11438_ Slug penetrates P-60 Hacker. 11438_ P-60 Hacker suffers critical hit (Destroy). 11438_ Destroyed Shock Rifle. 11439_ Carbon-fiber Leg destroyed. 11440_ Soldier 4a reactivates. 11441_ Slug penetrates P-60 Hacker. 11441_ Destroyed Gravmag System. 11441_ Coil Gun destroyed. 11442_ KE Penetrator destroyed. 11443_ Destroyed Mic. Nuclear Core. 11444_ Carbon-fiber Leg destroyed. 11445_ Remote Datajack destroyed. 11445_ P-60 Hacker destroyed. 11446_ Flak Gun destroyed. Map ----- +----------------------------------------------------+ | ?????????????????????????????????????????????????? | | ?????????????????????????????????????????????????? | | ?????????????????????++??????????????????????????? | | ??????????????????????????????????????+??????????? | | ?????????????????????????????????????????????????? | | ?????????????????????????????????????????????????? | | ????????+?????????????+??????????????????????+???? | | ?????????????????????????????????????????????????? | | ???????????????????????????????????????+?????????? | | ?????????????????????????????????????????????????? | | ?????????????????????????? %????????????????????? | | ?????????????????????????? =#???????????????????? | | ??????????????????????????^*%#???????????????????? | | ?????????????????????????? [=??? ????????+????? | | ?????????????????????????+ ?? ????????????? | | ?????????????????????????# ?? ?????????????? | | ?????????????????????????# #? #????????+????? | | ????????????????????????## ## ??? ?????????? | | ???????????????????????? ??? ??+??????? | | ???????????????????????? ?? ?????????? | | ????????????????????###?? ?? ??????????? | | ????#####???????????# +? % ?? ????????????? | | ????#[[[[###????????# #??#%=g#?? #?????????????? | | ????# ^ #????????# #??#= ## ## ##???????? | | ????#[[[[# ########## ####g% p ^ ??????? | | ????###??# ; @*= g= ??????? | | ?????????# #### ########## g% g #????????? | | ?????????# #??# #????????## ## %## #?????????? | | ?????????# #??# #?????????# #????C#?????????????? | | #####????# #??# ##????????# #???????????????????? | | """"#????# #??# #????????# #???????????????????? | | ! ####### ####"##????????+ #???????????????????? | | =* [%" #?????????# #???????????????????? | | ######### ### #?????????# #???????????????????? | | ????????#===#?#^#?????????# #???????????????????? | | ????????##"##?# ###???????? #???????????????????? | | ?????????#=#??# #T###+##### #???????????????????? | | ?????????#[#### #???????????????????? | | ?????????# " #???????????????????? | | ?????????####### ###+########???????????????????? | | ???????????????# #??????????????????????????????? | | ???????????????# #??????????????????????????????? | | ???????????????# #??????????????????????????????? | | ???????????????# +??????????????????????????????? | | ???????????????# #???????????????????+??????????? | | ???????????????# #??????????????????????????????? | | ???????????????# #??????????????????????????????? | | ?????????????### #??????????????????????????????? | | ?????????????# #??????????????????????????????? | | ?????????????# #??????????????????????????????? | +----------------------------------------------------+ Best States ------------- Heat Dissipation 72 Coolant Potential 65 Energy Generation 18 Energy Capacity 275 Matter Stores 300 Matter Capacity 300 Sight Range 16 Terrain Scan Density 10 ECM Strength 1 Jamming Range 12 Armor Coverage 450 Core Shielding 20 Propulsion Shielding 33 Weapon Shielding 33 Weapon Cycling 15 Evasion (%) 50 Recoil Reduction 3 Kinecelleration 30 Relay Coupler Types 1 Relay Coupler Value 42 Item Schematics ----------------- None Robot Schematics ------------------ None Fabricated ------------ Nothing Repaired ---------- Nothing Alien Tech Used ----------------- None Achievements -------------- None Challenges ------------ None Game ------ Seed GuidanceDerelictExpander Manual? 0 Play Time 01:08:35 Cumulative 258.8 hours Start 2025.09.04 @ 23:53:17 End 2025.09.05 @ 05:25:32 Sessions 6 Manual Loads 0 Difficulty Rogue Special Mode None Game No. 382 Rogue 382 Adventurer 0 Explorer 0 Win Type - Total 5 Types 4/0/1/0/0/0/0/0/0/0 Lore% 83 Gallery% 79 Achievement% 61 Wizard Run 0 Options --------- Layout 1 ASCII 0 Keyboard 0 Movement Mouse Keybinds 0 Fullscreen 1 Font 24/Smallcaps Map View 50x40 Zoom Use 0% Tactical HUD 1 Map Filters NONE Filters NONE Steam 1 RUN: b07a35e5-ac82-48d9-8fd1-70b9ce08d42b